Cogmind - Beta 11.1 @@@ ROGUE MODE // 2022.09.18 @ 19:26:06 Player: ClassActJerk Result: Destroyed by H-61 Shepherd with Heavy Assault Cannon Performance ------------- Evolutions (2) 1000 Regions Visited (3) 600 Robots Destroyed (31) 155 Value Destroyed (1014) 1014 Prototype IDs (0) 0 Alien Tech Used (0) 0 Bonus (0) 0 TOTAL SCORE: 2769 Bonus ------- None Cogmind --------- Core Integrity 0/550 Matter 300/300 Energy 265/265 System Corruption 7% Temperature Cool (0) Movement Core (350) Ox6 Location -8/Materials Parts ------- > --- POWER (1) -------- Improved Ion Engine > --- PROPULSION (2) --- (None) > --- UTILITY (5) ------ Medium Storage Unit Signal Interpreter > --- WEAPON (3) ------- Particle Gun > --- INVENTORY (10) --- Light Ion Engine Nuclear Core Nuclear Core Light Armor Plating Peak State ------------ > --- POWER ------------ Light Ion Engine > --- PROPULSION ------- Light Treads Light Treads > --- UTILITY ---------- Medium Storage Unit High-capacity Battery Signal Interpreter Advanced ECM Suite Improved Light Armor Plating > --- WEAPON ----------- Particle Gun Gauss Rifle Proton Missile Launcher > --- INVENTORY -------- Light Ion Engine Improved Ion Engine Nuclear Core Nuclear Core [Rating: 23] Favorites ----------- Power Light Ion Engine Engine Light Ion Engine Propulsion Aluminum Leg Treads Light Treads Leg Aluminum Leg Utility Signal Interpreter Device Advanced ECM Suite Storage Small Storage Unit Processor Signal Interpreter Protection Medium Armor Plating Weapon Light Assault Rifle Energy Gun Beam Rifle Ballistic Gun Light Assault Rifle Launcher Grenade Launcher Special Melee Weapon Datajack Build | -11 -10 -9 -8 ------- Run | Scr Mat Mat Mat Slots Evolved 4 | . . 2 2 Power . | . . . . Propulsion . | . . . . Utility 3 | . . 2 1 Weapon 1 | . . . 1 Parts Attached 40 | 6 5 9 20 Power 5 | 1 . 1 3 Engine 5 | 1 . 1 3 Core . | . . . . Reactor . | . . . . Propulsion 8 | 2 2 1 3 Treads 2 | . . . 2 Leg 6 | 2 2 1 1 Wheel . | . . . . Hover . | . . . . Flight . | . . . . Utility 10 | 1 1 3 5 Device 1 | . . . 1 Storage 3 | 1 . 1 1 Processor 1 | . 1 . . Hackware . | . . . . Protection 5 | . . 2 3 Artifact . | . . . . Weapon 17 | 2 2 4 9 Energy Gun 4 | 1 . 1 2 Energy Cannon . | . . . . Ballistic Gun 7 | 1 1 2 3 Ballistic Cannon . | . . . . Launcher 3 | . . . 3 Special Weapon . | . . . . Impact Weapon . | . . . . Slashing Weapon . | . . . . Piercing Weapon . | . . . . Special Melee Weapon 3 | . 1 1 1 Unidentified Prototypes . | . . . . Parts Lost 24 | . . 2 22 Power 3 | . . . 3 Propulsion 4 | . . . 4 Utility 6 | . . . 6 Weapon 11 | . . 2 9 Highest Loss Streak 5 | . . 1 5 To Critical Strikes . | . . . . Average Slot Usage (%) 90 | . 91 94 85 Engine 10 | . 14 11 8 Treads 4 | . . . 10 Leg 16 | . 28 22 4 Device 1 | . . . 3 Storage 18 | . 14 22 18 Processor 8 | . 6 11 9 Protection 4 | . . 6 5 Energy Gun 11 | . 11 8 12 Ballistic Gun 10 | . 15 11 7 Launcher 1 | . . . 4 Special Melee Weapon 1 | . 1 2 . Naked Turns . | . . . . Heaviest Build 37 | 13 13 24 37 Greatest Support 40 | 20 20 20 40 Greatest Overweight (x) 6 | . . 1 6 Average Overweight (x) . | . . . . Largest Inventory Capacity 10 | 8 8 8 10 Average Capacity 8 | 6 8 8 8 Most Carried 8 | 5 8 8 7 Average Carried 5 | 3 3 6 5 Final Capacity 10 | 8 8 8 10 Final Carried 7 | 2 7 7 4 Class Distribution -------------------- 67% | Mutant 15% | Scavenger-Tank 7% | Scavenger-Mutant 5% | Tank 4% | Scavenger-Gunner Dominant Class ---------------- Mutant | -10/Materials Mutant | -9/Materials Scavenger-Tank | -8/Materials Resources | -11 -10 -9 -8 ----------- Run | Scr Mat Mat Mat Matter Collected 754 | 243 71 134 306 Remotely . | . . . . Salvage Created 946 | . 180 213 553 Parts 72 | . 23 11 38 Haulers Intercepted . | . . . . Recyclers Shooed . | . . . . Parts Field Recycled . | . . . . Retrieved Matter . | . . . . Parts Self-Destructed . | . . . . Prevented . | . . . . Kills | -11 -10 -9 -8 ------- Run | Scr Mat Mat Mat Combat Hostiles Destroyed 28 | . 8 4 16 Guns 23 | . 8 4 11 AOE 5 | . . . 5 Classes Destroyed 9 | . 3 1 5 Builder 2 | . 1 . 1 Watcher 1 | . . . 1 Swarmer 10 | . 6 . 4 Grunt 9 | . 2 2 5 Brawler 1 | . . . 1 Duelist 1 | . . . 1 Sentry 4 | . . 2 2 Specialist 2 | . . . 2 Hunter 1 | . . . 1 Best Kill Streak 5 | . 4 1 5 Combat Bots Only 4 | . 3 1 4 Max Kills in Single Turn 2 | . 2 1 2 Gunslinging . | . . . . Exploded 2 | . . . 2 Melee . | . . . . Uniques/NPCs Destroyed . | . . . . Combat | -11 -10 -9 -8 -------- Run | Scr Mat Mat Mat Damage Taken 3023 | . 283 297 2443 Core 678 | . 49 54 575 Absorbed by Shields . | . . . . Redirected to Shielding 108 | . . . 108 Core Remaining (%) 88 | 100 80 86 . Volleys Fired 104 | . 22 25 57 Largest 3 | . 2 2 3 Hottest 141 | . 60 76 141 Shots Fired 188 | . 44 29 115 Gun 173 | . 44 29 100 Cannon . | . . . . Launcher 15 | . . . 15 Special . | . . . . Kinetic 88 | . 29 25 34 Thermal 70 | . . 4 66 Explosive 12 | . . . 12 Electromagnetic 18 | . 15 . 3 Robot Hit Streak 10 | . 6 10 10 Robot Miss Streak 6 | . 6 2 4 Penetration Max . | . . . . Secondary Targets . | . . . . Shots Hit Robots 117 | . 22 25 70 Core Hits 65 | . 12 11 42 Critical Kills . | . . . . Critical Parts Destroyed . | . . . . Critical Strikes 5 | . 1 1 3 Burn 4 | . . 1 3 Corrupt 1 | . 1 . . Melee Attacks 1 | . . . 1 Impact . | . . . . Slashing . | . . . . Piercing . | . . . . Sneak Attacks 1 | . . . 1 Combat Hostiles . | . . . . Follow-up Attacks . | . . . . Damage Inflicted 2199 | . 267 246 1686 Guns 1264 | . 210 246 808 Cannons . | . . . . Explosions 933 | . 55 . 878 Melee . | . . . . Ramming 2 | . 2 . . Kinetic 521 | . 125 203 193 Thermal 713 | . 55 43 615 Explosive 804 | . . . 804 Electromagnetic 159 | . 85 . 74 Impact . | . . . . Slashing . | . . . . Piercing . | . . . . Highest Corruption 7 | . . . 7 Average Corruption 5 | . . . 5 Corruption Purged . | . . . . Corruption Blocked . | . . . . Effects 2 | . . . 2 Message Errors 1 | . . . 1 Energy Discharges 1 | . . . 1 Overload Shots . | . . . . Overflow Damage 34 | . . . 34 Projectiles . | . . . . Explosions 34 | . . . 34 Melee . | . . . . Knockbacks . | . . . . Impact . | . . . . Kinetic . | . . . . Secondary . | . . . . Self-Inflicted Damage 493 | . 40 . 453 Shots 12 | . 1 . 11 Rammed . | . . . . Targets Rammed 1 | . 1 . . Kicked 1 | . 1 . . Crushed . | . . . . Highest Temperature 594 | . 72 81 594 Average Temperature 135 | . 34 25 172 Received Heat Transfer 648 | . 36 189 423 Effects 13 | . . . 13 Shutdowns 2 | . . . 2 Interference 4 | . . . 4 Short Circuit 1 | . . . 1 Damage (minor) 4 | . . . 4 Damage (core) 2 | . . . 2 Siege Activations . | . . . . Robots Corrupted . | . . . . Combat Hostiles . | . . . . Parts Fried 2 | . . . 2 Impact Corruptions . | . . . . Robots Melted . | . . . . Combat Hostiles . | . . . . Parts Melted 2 | . 1 . 1 Heat Transferred 2061 | . 100 185 1776 Parts Sabotaged . | . . . . Parts Stolen . | . . . . Parts Stripped . | . . . . Power Chain Reactions 1 | . 1 . . Missiles Intercepted . | . . . . Alert | -11 -10 -9 -8 ------- Run | Scr Mat Mat Mat Peak Influence 311 | . 152 177 311 Initial 63 | . . 63 18 Average 107 | . 76 92 144 Maximum Alert Level 1 | . . . 1 Low Security (%) 90 | 100 100 100 76 Level 1 9 | . . . 23 Level 2 . | . . . . Level 3 . | . . . . Level 4 . | . . . . Level 5 . | . . . . High Security . | . . . . Max Security . | . . . . Squads Dispatched 7 | . 1 . 6 Investigation 1 | . 1 . . Extermination . | . . . . Reinforcement 4 | . . . 4 Assault . | . . . . Garrison 2 | . . . 2 Intercept . | . . . . Searches Triggered . | . . . . Construction Impeded 1 | . . . 1 Haulers Reinforced . | . . . . Active Scanning Responses . | . . . . Cargo Convoy Interrupts . | . . . . Stealth | -11 -10 -9 -8 --------- Run | Scr Mat Mat Mat Distress Signals 4 | . 1 3 . Communications Jammed . | . . . . Distress Signals . | . . . . Times Spotted 47 | . 11 12 24 Peak Tracking Total 7 | . 5 3 7 Tactical Retreats 3 | . 1 . 2 Traps | -11 -10 -9 -8 ------- Run | Scr Mat Mat Mat Traps Triggered 2 | . 1 1 . Indirectly . | . . . . Trap Hack Attempts . | . . . . Triggered . | . . . . Disarmed . | . . . . Reprogrammed . | . . . . Reused . | . . . . Traps Extracted . | . . . . Installed . | . . . . Triggered . | . . . . Machines | -11 -10 -9 -8 ---------- Run | Scr Mat Mat Mat Machines Disabled 5 | . . . 5 Max in Single Turn 1 | . . . 1 Machines Sabotaged . | . . . . Garrisons Compromised . | . . . . Overloaded Fab Kills . | . . . . Hacking | -11 -10 -9 -8 --------- Run | Scr Mat Mat Mat Machines Accessed 5 | . 2 2 1 Terminals 4 | . 1 2 1 Fabricators . | . . . . Repair Stations 1 | . 1 . . Recycling Units . | . . . . Scanalyzers . | . . . . Garrison Access . | . . . . Total Hacks 10 | . 6 3 1 Successful 6 | . 3 2 1 Failed 4 | . 3 1 . Catastrophic . | . . . . Database Lockouts . | . . . . Manual 3 | . 1 2 . Terminals 6 | . 2 3 1 Fabricators . | . . . . Repair Stations 4 | . 4 . . Recycling Units . | . . . . Scanalyzers . | . . . . Garrison Access . | . . . . Terminal Hacks 3 | . 1 1 1 Record 2 | . 1 . 1 Emergency Access Points 1 | . . 1 . Fabricator Hacks . | . . . . Repair Station Hacks 2 | . 2 . . Scan Component 2 | . 2 . . Recycling Unit Hacks . | . . . . Scanalyzer . | . . . . Garrison Access Hacks . | . . . . Unauthorized Hacks 1 | . . 1 . Terminals 1 | . . 1 . Botnet 1 | . . 1 . Fabricators . | . . . . Repair Stations . | . . . . Recycling Units . | . . . . Scanalyzers . | . . . . Garrison Access . | . . . . Data Cores Recovered . | . . . . Used . | . . . . Hacking Detections 3 | . 1 2 . Full Trace Events 1 | . 1 . . Feedback Events . | . . . . Feedback Blocked . | . . . . Robot Schematics Acquired . | . . . . Robots Built . | . . . . Authchips . | . . . . Time . | . . . . Total Robot Build Rating . | . . . . Part Schematics Acquired . | . . . . Parts Built . | . . . . Authchips . | . . . . Time . | . . . . Total Part Build Rating . | . . . . Parts Repaired . | . . . . Time . | . . . . Parts Recycled . | . . . . Recycled Matter . | . . . . Retrieved Matter . | . . . . Retrieved Components . | . . . . Parts Scanalyzed . | . . . . Part Schematics Acquired . | . . . . Parts Damaged . | . . . . Bothacking | -11 -10 -9 -8 ------------ Run | Scr Mat Mat Mat Used RIF Installer . | . . . . Robots Hacked 1 | . . . 1 Non-combat 1 | . . . 1 Combat . | . . . . Robot Hacks Applied 1 | . . . 1 parse_system 1 | . . . 1 Relay Couplers Released . | . . . . Fabnet Peak Effective % . | . . . . Robots Rewired . | . . . . Allies Hacked . | . . . . Hacks Repelled . | . . . . Allies | -11 -10 -9 -8 -------- Run | Scr Mat Mat Mat Total Allies . | . . . . Largest Group . | . . . . Highest-Rated Group . | . . . . Highest-Rated Ally . | . . . . Total Orders . | . . . . Ally Attacks . | . . . . Total Damage . | . . . . Kills . | . . . . Allies Corrupted . | . . . . Allies Melted . | . . . . Intel | -11 -10 -9 -8 ------- Run | Scr Mat Mat Mat Robot Analysis Total . | . . . . Derelict Logs Recovered . | . . . . Drone Launches . | . . . . Drone Recoveries . | . . . . Exploration | -11 -10 -9 -8 ------------- Run | Scr Mat Mat Mat Turns Passed 2197 | 56 575 646 920 Spaces Moved 1013 | 42 281 311 379 Core 10 | 9 . . 1 Treads 267 | . . . 267 Legs 736 | 33 281 311 111 Wheels . | . . . . Hover . | . . . . Flight . | . . . . Fastest Speed 50 | 50 120 120 160 Average Speed 152 | 105 120 157 177 Slowest Speed 350 | 120 120 190 350 Overloaded Moves . | . . . . Propulsion Burnouts . | . . . . Robots Hopped . | . . . . Cave-ins Triggered . | . . . . Exploration Rate (%) 27 | 4 51 28 26 Regions Visited 3 Branch Regions . Pre-discovered Areas . | . . . . Known Exits Taken 2 | . 1 1 . Unknown Exits Taken 1 | 1 . . . Scrap Searched . | . . . . Spaces Dug . | . . . . Terrain Destroyed 104 | . 3 . 101 Melee . | . . . . Projectile . | . . . . AOE 104 | . 3 . 101 Terrain Rammed . | . . . . Walls Destroyed . | . . . . Machines Disabled . | . . . . Actions | -11 -10 -9 -8 --------- Run | Scr Mat Mat Mat Total 1513 | 52 483 445 533 Wait 304 | . 158 90 56 Move 1010 | 41 280 310 379 Hop . | . . . . Pick Up 41 | 5 11 8 17 Fast Attach 5 | 3 1 1 . Attach 35 | 3 4 8 20 Detach . | . . . . Swap . | . . . . Drop 12 | . 6 3 3 Fire 104 | . 22 25 57 Melee 1 | . . . 1 Ram . | . . . . Kick 1 | . 1 . . Crush . | . . . . Escape Stasis . | . . . . Rewire . | . . . . Trap . | . . . . Miscellaneous . | . . . . Route ------- -11/Scrapyard -10/Materials -9/Materials -8/Materials (discovered 1 exit: [*Fac]) History --------- Turn | Location | Event 14 | -11/Scrapyard | Discovered new exit (range 16) 57 | -11/Scrapyard | Entered Materials 306 | -10/Materials | Build established: Mutant 600 | -10/Materials | Discovered new exit (range 16) 631 | -10/Materials | Identified exit to Materials 632 | -10/Materials | Entered another Materials area 632 | -9/Materials | Evolved 2 slots: Utility x2 1250 | -9/Materials | Discovered new exit (range 16) 1276 | -9/Materials | Identified exit to Materials 1278 | -9/Materials | Entered another Materials area 1278 | -8/Materials | Evolved 2 slots: Utility x1, Weapon x1 1444 | -8/Materials | Lost 5 parts (1p2n1u1w) 1683 | -8/Materials | Lost 3 parts (1u2w) 2038 | -8/Materials | Build established: Scavenger-Tank 2064 | -8/Materials | Garrison activated, responded to threat 2095 | -8/Materials | Core integrity fell below 50% 2098 | -8/Materials | Core integrity fell below 20% 2173 | -8/Materials | Lost 3 parts (1p1u1w) 2195 | -8/Materials | Discovered new exit (range 3) 2198 | -8/Materials | Destroyed by H-61 Shepherd with Heavy Assault Cannon Last Messages --------------- 02128_ R-06 Scavenger collects Corrupted Core Analyzer. 02131_ The unstable cave ceiling collapses. 02136_ Gauss Rifle destroyed. 02136_ System corrupted by crushing effect (+1). 02137_ L-31 Rogue destroyed. 02139_ The unstable cave ceiling collapses. 02142_ Lgt. Ion Engine destroyed. 02142_ System corrupted by crushing effect (+5). 02143_ The unstable cave ceiling collapses. 02148_ B-36 Bruiser destroyed. 02150_ Acquired 39 matter. 02152_ Acquired 23 matter. 02157_ Acquired Lgt. Armor Plating. 02180_ RVDD<5M JSZ3IFAZM&VVD 02195_ EXIT=FOUND 02196_ Lgt. Treads destroyed. 02196_ Hcp. Battery destroyed. 02196_ Adv. ECM Suite destroyed. 02196_ Proton Missile Launcher destroyed. 02196_ Knocked back. Map ----- +----------------------------------------------------+ | ???????????????????????????????????? | | ???????????????????????????????????? | | ???????????????????????????????????? | | ???????????????????????????????????? | | ???????????????????????????????????? | | ???????????????????????????????????? | | ???????????????????????????????????? | | ???????????????????????????????????? | | ???????????????????????????????????? | | ???????????????????????????????????? | | ???????????????????????????????????? | | ???????????????????????????????????? | | ???????????????????????????????????? | | ???????????????????????????????????? | | ???????????????????????????????????? | | ???????????????????????????????????? | | ???????????????????????????????????? | | ???????????????????????????????????? | | ???????????????????????????????????? | | ???????????????????????????????????? | | ???????????????????????????????????? | | ??????????????????+######+####?????? | | ??????????????????? #?????? | | ????????????????????? H #?????? | | ??????????????????????? ???????? | | ???????????????????????##@#####????? | | ???????????????????????#% #????? | | ???????????????????????# #????? | | ???????????????????????# #????? | | ???????????????????????# #????? | | ???????????????????????# #????? | | ???????????????????????# ss #????? | | ???????????????????????####/###????? | | ??????????????????????????# ######## | | ??????????????????????????# # # | | ????????????############### # # | | ????????????# * * = ## | | ????????????# * """ ## | | #####???????# ** """ # | | #???????# """ % =/ | | #???????# # =% = | | #??###########+####### %== | | #??# + ####### # | | #??# # # # | | #??# # ###### # ## # | | # # ##?# *# #????# ####### | | #""" #?# [# #????# #?????? | | # "#### + #?? "## ##?????? | | !% + =!# # T## #??????? | | ######## # + "## ######?? | +----------------------------------------------------+ Best States ------------- Heat Dissipation 31 Energy Generation 12 Energy Capacity 515 Matter Stores 300 Matter Capacity 300 Sight Range 16 Terrain Scan Density 10 ECM Strength 2 Armor Coverage 225 Propulsion Shielding 66 Evasion (%) 55 Recoil Reduction 2 Item Schematics ----------------- None Robot Schematics ------------------ None Fabricated ------------ Nothing Alien Tech Used ----------------- None Achievements -------------- None Challenges ------------ None Game ------ Seed InsulatedMediumKatana Manual? 0 Play Time 00:23:59 Cumulative 7.8 hours Start 2022.09.18 @ 19:03:01 End 2022.09.18 @ 19:26:06 Sessions 1 Manual Loads 0 Difficulty Rogue Special Mode None Game No. 25 Rogue 25 Adventurer 0 Explorer 0 Win Type - Total 0 Types 0/0/0/0/0/0/0/0/0 Lore% 5 Gallery% 13 Achievement% 12 Wizard Run 0 Options --------- ASCII 0 Keyboard 0 Movement Mouse Keybinds 0 Fullscreen 1 Font 24/Crisp Map View 76x50 Tactical HUD 1 Map Filters NONE Filters NONE Steam 1 RUN: f0894985-8544-4cd5-a4b0-2beffaf5c257